fUSD/lending_fUSD_20250525
["ID","MTS","AMOUNT","RATE_DAILY","PERIOD"]
[362337786,1748205040437,-420.0,0.00019899,2]
[362337788,1748205040447,-483.02207137,0.00019899,2]
[362337790,1748205040457,-420.0,0.00019899,2]
[362337791,1748205040466,-422.03424212,0.00019899,2]
[362337792,1748205040476,-420.0,0.00019899,2]
[362337793,1748205040485,-420.0,0.00019899,2]
[362337794,1748205040494,-500.0,0.00019899,2]
[362337795,1748205040504,-420.0,0.00019899,2]
[362337796,1748205040513,-477.74,0.00019899,2]
[362337797,1748205040523,-420.0,0.00019899,2]
[362337798,1748205040533,-420.0,0.00019899,2]
[362337799,1748205040543,-420.0,0.00019899,2]
[362337800,1748205040552,-420.0,0.00019899,2]
[362337801,1748205040561,-420.0,0.00019899,2]
[362337802,1748205040572,-428.05343612,0.00019899,2]
[362337803,1748205040583,-420.0,0.00019899,2]
[362337804,1748205040593,-420.0,0.00019899,2]
[362337805,1748205040603,-420.0,0.00019899,2]
[362337806,1748205040612,-420.0,0.00019899,2]
[362337807,1748205040622,-420.0,0.00019899,2]
[362337808,1748205040631,-420.0,0.00019899,2]
[362337809,1748205040640,-368.61,0.00019899,2]
[362337810,1748205040649,-422.07537897,0.00019899,2]
[362337811,1748205040658,-420.0,0.00019899,2]
[362337812,1748205040671,-420.0,0.00019899,2]
[362337813,1748205040680,-420.0,0.00019899,2]
[362337814,1748205040689,-420.0,0.00019899,2]
[362337815,1748205040699,-420.0,0.00019899,2]
[362337816,1748205040709,-420.0,0.00019899,2]
[362337817,1748205040718,-420.0,0.00019899,2]
[362337818,1748205040728,-526.56,0.00019899,2]
[362337819,1748205040737,-420.0,0.00019899,2]
[362337820,1748205040747,-420.0,0.00019899,2]
[362337821,1748205040757,-420.0,0.00019899,2]
[362337822,1748205040767,-410.32758987,0.00019899,2]
[362337823,1748205040776,-420.0,0.00019899,2]
[362337824,1748205040787,-420.0,0.00019899,2]
[362337825,1748205040797,-420.0,0.00019899,2]
[362337826,1748205040806,-421.961116,0.00019899,2]
[362337827,1748205040816,-509.13115329,0.00019899,2]
[362337828,1748205040826,-420.0,0.00019899,2]
[362337829,1748205040837,-423.37998503,0.00019899,2]
[362337830,1748205040847,-420.0,0.00019899,2]
[362337831,1748205040856,-420.0,0.00019899,2]
[362337832,1748205040865,-420.0,0.00019899,2]
[362337833,1748205040875,-420.0,0.00019899,2]
[362337834,1748205040885,-420.0,0.00019899,2]
[362337835,1748205040894,-420.0,0.00019899,2]
[362337836,1748205040903,-423.32979545,0.00019899,2]
[362337837,1748205040913,-420.0,0.00019899,2]
[362337838,1748205040924,-420.0,0.00019899,2]
[362337839,1748205040933,-420.0,0.00019899,2]
[362337840,1748205040942,-420.0,0.00019899,2]
[362337841,1748205040952,-420.0,0.00019899,2]
[362337842,1748205040961,-420.0,0.00019899,2]
[362337843,1748205040970,-420.0,0.00019899,2]
[362337844,1748205040979,-420.0,0.00019899,2]
[362337845,1748205040989,-420.0,0.00019899,2]
[362337846,1748205040999,-420.0,0.00019899,2]
[362337847,1748205041009,-425.01906251,0.00019899,2]
[362337848,1748205041018,-420.0,0.00019899,2]
[362337849,1748205041029,-420.0,0.00019899,2]
[362337850,1748205041039,-420.0,0.00019899,2]
[362337851,1748205041048,-420.0,0.00019899,2]
[362337852,1748205041057,-420.0,0.00019899,2]
[362337853,1748205041067,-420.0,0.00019899,2]
[362337854,1748205041079,-422.72161785,0.00019899,2]
[362337855,1748205041090,-420.0,0.00019899,2]
[362337856,1748205041100,-420.0,0.00019899,2]
[362337857,1748205041110,-561.12533999,0.00019899,2]
[362337858,1748205041120,-621.79,0.00019899,2]
[362337859,1748205041131,-420.0,0.00019899,2]
[362337860,1748205041142,-425.44687402,0.00019899,2]
[362337861,1748205041153,-413.26946892,0.00019899,2]
[362337862,1748205041163,-420.0,0.00019899,2]
[362337863,1748205041173,-420.0,0.00019899,2]
[362337864,1748205041183,-420.0,0.00019899,2]
[362337865,1748205041193,-420.0,0.00019899,2]
[362337866,1748205041205,-420.0,0.00019899,2]
[362337867,1748205041215,-420.0,0.00019899,2]
[362337868,1748205041227,-420.0,0.00019899,2]
[362337869,1748205041238,-420.0,0.00019899,2]
[362337870,1748205041248,-420.0,0.00019899,2]
[362337871,1748205041258,-420.0,0.00019899,2]
[362337872,1748205041270,-420.0,0.00019899,2]
[362337873,1748205041281,-513.1887386,0.00019899,2]
[362337874,1748205041290,-420.0,0.00019899,2]
[362337875,1748205041300,-420.0,0.00019899,2]
[362337876,1748205041309,-420.0,0.00019899,2]
[362337877,1748205041318,-420.0,0.00019899,2]
[362337878,1748205041326,-420.0,0.00019899,2]
[362337879,1748205041335,-420.0,0.00019899,2]
[362337880,1748205041343,-420.0,0.00019899,2]
[362337881,1748205041352,-420.0,0.00019899,2]
[362337882,1748205041361,-420.0,0.00019899,2]
[362337883,1748205041370,-420.0,0.00019899,2]
[362337884,1748205041380,-420.0,0.00019899,2]
[362337885,1748205041389,-420.0,0.00019899,2]
[362337886,1748205041398,-420.0,0.00019899,2]
[362337887,1748205041408,-500.0,0.00019899,2]
[362337888,1748205041419,-420.0,0.00019899,2]
[362337889,1748205041428,-500.0,0.00019899,2]
[362337890,1748205041438,-420.0,0.00019899,2]
[362337891,1748205041447,-1026.63,0.00019899,2]
[362337892,1748205041458,-1026.63,0.00019899,2]
[362337893,1748205041468,-420.0,0.00019899,2]
[362337894,1748205041478,-420.0,0.00019899,2]
[362337895,1748205041488,-420.0,0.00019899,2]
[362337896,1748205041498,-420.0,0.00019899,2]
[362337897,1748205041507,-155.960386,0.00019899,2]
[362337898,1748205041516,-420.0,0.00019899,2]
[362337899,1748205041525,-420.0,0.00019899,2]
[362337900,1748205041535,-420.0,0.00019899,2]
[362337901,1748205041545,-420.0,0.00019899,2]
[362337902,1748205041555,-1312.885117,0.00019899,2]
[362337903,1748205041564,-1312.885117,0.00019899,2]
[362337904,1748205041574,-420.0,0.00019899,2]
[362337905,1748205041584,-420.0,0.00019899,2]
[362337906,1748205041594,-420.0,0.00019899,2]
[362337907,1748205041605,-420.0,0.00019899,2]
[362337908,1748205041616,-420.0,0.00019899,2]
[362337909,1748205041626,-420.0,0.00019899,2]
[362337910,1748205041636,-416.08,0.00019899,2]
[362337911,1748205041646,-469.7746284,0.00019899,2]
[362337912,1748205041656,-420.0,0.00019899,2]
[362337913,1748205041666,-420.0,0.00019899,2]
[362337914,1748205041677,-420.0,0.00019899,2]
[362337915,1748205041686,-420.0,0.00019899,2]
[362337916,1748205041695,-420.0,0.00019899,2]
[362337917,1748205041705,-420.0,0.00019899,2]
[362337918,1748205041715,-420.0,0.00019899,2]
[362337919,1748205041725,-420.0,0.00019899,2]
[362337920,1748205041736,-420.0,0.00019899,2]
[362337921,1748205041747,-420.0,0.00019899,2]
[362337922,1748205041757,-420.0,0.00019899,2]
[362337923,1748205041767,-185.14,0.00019899,2]
[362337924,1748205041777,-420.0,0.00019899,2]
[362337925,1748205041786,-420.0,0.00019899,2]
[362337926,1748205041796,-420.0,0.00019899,2]
[362337927,1748205041806,-420.0,0.00019899,2]
[362337928,1748205041816,-1366.06849,0.00019899,2]
[362337929,1748205041826,-420.0,0.00019899,2]
[362337930,1748205041836,-1366.06849,0.00019899,2]
[362337931,1748205041846,-8131.98,0.00019899,2]
[362337932,1748205041856,-420.0,0.00019899,2]
[362337933,1748205041866,-420.0,0.00019899,2]
[362337934,1748205041876,-420.0,0.00019899,2]
[362337935,1748205041885,-420.0,0.00019899,2]
[362337936,1748205041894,-420.0,0.00019899,2]
[362337937,1748205041904,-351.24,0.00019899,2]
[362337938,1748205041913,-378.07,0.00019899,2]
[362337939,1748205041923,-420.0,0.00019899,2]
[362337940,1748205041932,-420.0,0.00019899,2]
[362337941,1748205041942,-420.0,0.00019899,2]
[362337942,1748205041951,-420.0,0.00019899,2]
[362337943,1748205041961,-420.0,0.00019899,2]
[362337944,1748205041970,-180.103401,0.00019899,2]
[362337945,1748205041979,-420.0,0.00019899,2]
[362337946,1748205041988,-420.0,0.00019899,2]
[362337947,1748205041997,-442.9,0.00019899,2]
[362337948,1748205042007,-184.74364286,0.00019899,2]
[362337949,1748205042017,-184.74364286,0.000199,2]
[362337950,1748205042026,-337.97779576,0.000199,2]
[362337951,1748205042035,-34006.37407074,0.000199,2]
[362337952,1748205042058,-103317.47932926,0.000199,2]
[362337953,1748205042067,-184.74364286,0.000199,2]
[362337954,1748205042078,-150.0,0.000199,2]
[362337955,1748205042087,-221.42526833,0.000199,2]
[362337956,1748205042096,-243204.25203958,0.000199,2]
[362337957,1748205042105,-170.38557622,0.000199,2]
[362337958,1748205042114,-163.03177287,0.000199,2]
[362337959,1748205042124,-151.0,0.000199,2]
[362337960,1748205042133,-3438.06904922,0.000199,2]
[362337961,1748205042143,-151.0,0.000199,2]
[362337962,1748205042152,-151.0,0.000199,2]
[362337963,1748205042162,-151.0,0.000199,2]
[362337964,1748205042172,-3050.39723936,0.000199,2]
[362337965,1748205042181,-151.0,0.000199,2]
[362337966,1748205042190,-200.752088,0.000199,2]
[362337967,1748205042200,-150.0,0.00019905,2]
[362337968,1748205042210,-150.0,0.00019905,2]
[362337969,1748205042219,-150.0,0.00019906,2]
[362337970,1748205042228,-150.0,0.00019911,2]
[362337971,1748205042239,-150.0,0.0001992,2]
[362337972,1748205042249,-150.0,0.00019924,2]
[362337973,1748205042259,-150.0,0.00019924,2]
[362337974,1748205042270,-150.0,0.00019926,2]
[362337975,1748205042280,-150.0,0.00019929,2]
[362337976,1748205042290,-150.0,0.00019932,2]
[362337977,1748205042300,-150.0,0.00019933,2]
[362337978,1748205042310,-150.0,0.00019935,2]
[362337979,1748205042319,-150.0,0.00019938,2]
[362337980,1748205042329,-150.0,0.00019939,2]
[362337981,1748205042339,-150.0,0.00019939,2]
[362337982,1748205042351,-150.0,0.00019948,2]
[362337983,1748205042363,-150.0,0.00019952,2]
[362337984,1748205042374,-150.0,0.00019954,2]
[362337985,1748205042384,-150.0,0.00019963,2]
[362337986,1748205042395,-150.0,0.00019965,2]
[362337987,1748205042405,-150.0,0.00019965,2]
[362337988,1748205042416,-536.0,0.00019968,2]
[362337989,1748205042425,-150.0,0.00019968,2]
[362337990,1748205042436,-300.0,0.00019969,2]
[362337991,1748205042446,-514.0,0.0001997,2]
[362337992,1748205042456,-150.0,0.00019971,2]
[362337993,1748205042466,-5348.0,0.00019973,2]
[362337994,1748205042475,-166.53580812,0.00019973,2]
[362337995,1748205042484,-500.0,0.00019973,2]
[362337996,1748205042494,-505.64239924,0.00019973,2]
[362337997,1748205042503,-500.0,0.00019973,2]
[362337998,1748205042513,-500.0,0.00019973,2]
[362337999,1748205042523,-500.0,0.00019973,2]
[362338000,1748205042534,-150.0,0.00019973,2]
[362338001,1748205042546,-150.0,0.00019976,2]
[362338002,1748205042557,-150.0,0.00019978,2]
[362338003,1748205042566,-150.0,0.0001998,2]
[362338004,1748205042576,-150.0,0.00019985,2]
[362338006,1748205042585,-41054.14534671,0.00019985,2]
[362338008,1748205042594,-150.0,0.00019987,2]
[362338010,1748205042603,-150.0,0.0001999,2]
[362338012,1748205042612,-30258.2376432,0.0001999,2]
[362338013,1748205042622,-30772.9116293,0.0001999,2]
[362338014,1748205042631,-500.0,0.00019991,2]
[362338015,1748205042641,-420.0,0.00019991,2]
[362338016,1748205042651,-420.0,0.00019991,2]
[362338017,1748205042660,-422.09,0.00019991,2]
[362338018,1748205042674,-420.0,0.00019991,2]
[362338019,1748205042685,-420.0,0.00019991,2]
[362338020,1748205042695,-426.69495905,0.00019992,2]
[362338021,1748205042705,-420.0,0.00019992,2]
[362338022,1748205042715,-420.0,0.00019992,2]
[362338023,1748205042724,-420.0,0.00019992,2]
[362338024,1748205042878,-420.0,0.00019992,2]
[362338025,1748205042905,-420.0,0.00019992,2]
[362338026,1748205042917,-465.83,0.00019992,2]
[362338027,1748205042927,-420.0,0.00019992,2]
[362338028,1748205042936,-420.0,0.00019992,2]
[362338029,1748205042945,-420.0,0.00019992,2]
[362338030,1748205042955,-420.0,0.00019992,2]
[362338031,1748205042965,-420.0,0.00019992,2]
[362338032,1748205042974,-420.0,0.00019992,2]
[362338033,1748205042983,-420.0,0.00019992,2]
[362338034,1748205042992,-420.0,0.00019992,2]
[362338035,1748205043001,-420.0,0.00019992,2]
[362338036,1748205043011,-423.18161189,0.00019992,2]
[362338037,1748205043020,-776.31,0.00019992,2]
[362338038,1748205043029,-704.33,0.00019992,2]
[362338039,1748205043039,-420.0,0.00019992,2]
[362338040,1748205043048,-255.89,0.00019992,2]
[362338041,1748205043057,-420.0,0.00019992,2]
[362338042,1748205043067,-420.0,0.00019992,2]
[362338043,1748205043076,-420.0,0.00019992,2]
[362338044,1748205043085,-420.0,0.00019992,2]
[362338045,1748205043095,-500.0,0.00019992,2]
[362338047,1748205043104,-420.0,0.00019992,2]
[362338048,1748205043113,-420.0,0.00019992,2]
[362338049,1748205043123,-420.0,0.00019992,2]
[362338050,1748205043132,-420.0,0.00019992,2]
[362338051,1748205043142,-420.0,0.00019992,2]
[362338052,1748205043151,-420.0,0.00019992,2]
[362338053,1748205043160,-420.0,0.00019992,2]
[362338054,1748205043170,-420.0,0.00019992,2]
[362338055,1748205043179,-420.0,0.00019992,2]
[362338056,1748205043189,-427.935097,0.00019992,2]
[362338057,1748205043198,-420.0,0.00019992,2]
[362338058,1748205043207,-420.0,0.00019992,2]
[362338059,1748205043216,-420.0,0.00019992,2]
[362338060,1748205043225,-420.0,0.00019992,2]
[362338061,1748205043235,-420.0,0.00019992,2]
[362338062,1748205043244,-420.0,0.00019992,2]
[362338063,1748205043253,-420.0,0.00019992,2]
[362338064,1748205043262,-420.0,0.00019992,2]
[362338065,1748205043271,-151.0,0.00019992,2]
[362338066,1748205043280,-420.0,0.00019992,2]
[362338067,1748205043290,-420.0,0.00019992,2]
[362338068,1748205043299,-420.0,0.00019992,2]
[362338069,1748205043308,-420.0,0.00019992,2]
[362338070,1748205043317,-151.0,0.00019992,2]
[362338071,1748205043327,-420.0,0.00019992,2]
[362338072,1748205043338,-420.0,0.00019992,2]
[362338073,1748205043349,-420.0,0.00019992,2]
[362338074,1748205043359,-420.0,0.00019992,2]
[362338075,1748205043368,-151.0,0.00019992,2]
[362338077,1748205043378,-420.0,0.00019992,2]
[362338078,1748205043389,-151.0,0.00019992,2]
[362338079,1748205043399,-420.0,0.00019992,2]
[362338080,1748205043409,-420.0,0.00019992,2]
[362338081,1748205043419,-1026.63,0.00019992,2]
[362338082,1748205043428,-440.29,0.00019992,2]
[362338083,1748205043438,-420.0,0.00019992,2]
[362338084,1748205043448,-386.46,0.00019992,2]
[362338085,1748205043459,-1312.885117,0.00019992,2]
[362338086,1748205043469,-420.0,0.00019992,2]
[362338087,1748205043479,-420.0,0.00019992,2]
[362338088,1748205043489,-420.0,0.00019992,2]
[362338089,1748205043498,-341.91,0.00019992,2]
[362338090,1748205043507,-151.0,0.00019992,2]
[362338091,1748205043517,-420.0,0.00019992,2]
[362338092,1748205043527,-420.0,0.00019992,2]
[362338093,1748205043536,-420.0,0.00019992,2]
[362338094,1748205043545,-1366.06849,0.00019992,2]
[362338095,1748205043554,-8131.98,0.00019992,2]
[362338096,1748205043563,-420.0,0.00019992,2]
[362338097,1748205043572,-420.0,0.00019992,2]
[362338098,1748205043581,-200.752088,0.00019992,2]
[362338099,1748205043591,-52180.94789881,0.00019992,2]
[362338100,1748205043600,-428.20757889,0.00019993,2]
[362338101,1748205043609,-421.01673408,0.00019993,2]
[362338102,1748205043618,-424.39311591,0.00019993,2]
[362338103,1748205043627,-306.96418328,0.00019993,2]
[362338104,1748205043637,-428.61430747,0.00019993,2]
[362338105,1748205043646,-421.53355048,0.00019993,2]
[362338106,1748205043655,-420.0,0.00019993,2]
[362338107,1748205043666,-383.74090781,0.00019993,2]
[362338108,1748205043677,-420.0,0.00019993,2]
[362338109,1748205043687,-420.0,0.00019993,2]
[362338110,1748205043696,-420.0,0.00019993,2]
[362338111,1748205043705,-420.0,0.00019993,2]
[362338112,1748205043715,-168.789232,0.00019993,2]
[362338113,1748205043724,-428.44170457,0.00019993,2]
[362338114,1748205043733,-420.0,0.00019993,2]
[362338115,1748205043743,-420.0,0.00019993,2]
[362338116,1748205043754,-420.0,0.00019993,2]
[362338117,1748205043764,-420.0,0.00019993,2]
[362338118,1748205043774,-420.0,0.00019993,2]
[362338119,1748205043783,-500.0,0.00019993,2]
[362338120,1748205043794,-420.0,0.00019993,2]
[362338121,1748205043804,-477.74,0.00019993,2]
[362338122,1748205043814,-420.0,0.00019993,2]
[362338123,1748205043824,-420.0,0.00019993,2]
[362338124,1748205043833,-420.0,0.00019993,2]
[362338125,1748205043843,-420.0,0.00019993,2]
[362338126,1748205043855,-420.0,0.00019993,2]
[362338127,1748205043864,-621.79,0.00019993,2]
[362338128,1748205043874,-420.0,0.00019993,2]
[362338129,1748205043884,-420.0,0.00019993,2]
[362338130,1748205043894,-420.0,0.00019993,2]
[362338131,1748205043903,-420.0,0.00019993,2]
[362338132,1748205043913,-420.0,0.00019993,2]
[362338133,1748205043924,-420.0,0.00019993,2]
[362338134,1748205043933,-420.0,0.00019993,2]
[362338135,1748205043942,-420.0,0.00019993,2]
[362338136,1748205043953,-335.3,0.00019993,2]
[362338137,1748205043964,-420.0,0.00019993,2]
[362338138,1748205043974,-420.0,0.00019993,2]
[362338139,1748205043985,-420.0,0.00019993,2]
[362338140,1748205043996,-420.0,0.00019994,2]
[362338141,1748205044007,-420.0,0.00019994,2]
[362338142,1748205044017,-268.57,0.00019994,2]
[362338143,1748205044027,-277.6,0.00019994,2]
[362338144,1748205044036,-420.0,0.00019994,2]
[362338145,1748205044046,-420.0,0.00019994,2]
[362338146,1748205044056,-420.0,0.00019994,2]
[362338147,1748205044065,-420.0,0.00019994,2]
[362338148,1748205044074,-420.0,0.00019994,2]
[362338149,1748205044083,-420.0,0.00019994,2]
[362338150,1748205044092,-420.0,0.00019994,2]
[362338151,1748205044101,-420.0,0.00019994,2]
[362338152,1748205044112,-420.0,0.00019994,2]
[362338153,1748205044123,-420.0,0.00019994,2]
[362338154,1748205044133,-420.0,0.00019994,2]
[362338155,1748205044143,-150.0,0.00019994,2]
[362338156,1748205044153,-420.0,0.00019994,2]
[362338157,1748205044165,-420.0,0.00019994,2]
[362338158,1748205044175,-420.0,0.00019994,2]
[362338159,1748205044184,-420.0,0.00019994,2]
[362338160,1748205044194,-420.0,0.00019994,2]
[362338161,1748205044202,-420.0,0.00019994,2]
[362338162,1748205044213,-420.0,0.00019994,2]
[362338163,1748205044224,-471.54,0.00019994,2]
[362338164,1748205044234,-420.0,0.00019994,2]
[362338165,1748205044243,-420.0,0.00019994,2]
[362338166,1748205044254,-420.0,0.00019994,2]
[362338167,1748205044263,-420.0,0.00019994,2]
[362338168,1748205044272,-420.0,0.00019994,2]
[362338169,1748205044281,-420.0,0.00019994,2]
[362338170,1748205044291,-420.0,0.00019994,2]
[362338171,1748205044300,-420.0,0.00019994,2]
[362338172,1748205044309,-420.0,0.00019994,2]
[362338173,1748205044318,-420.0,0.00019994,2]
[362338174,1748205044327,-168.9,0.00019994,2]
[362338175,1748205044336,-420.0,0.00019994,2]
[362338176,1748205044346,-420.0,0.00019994,2]
[362338177,1748205044355,-168.92,0.00019994,2]
[362338178,1748205044366,-420.0,0.00019994,2]
[362338179,1748205044378,-420.0,0.00019994,2]
[362338180,1748205044389,-389.97,0.00019994,2]
[362338181,1748205044398,-420.0,0.00019994,2]
[362338182,1748205044408,-163.24,0.00019994,2]
[362338183,1748205044418,-500.0,0.00019994,2]
[362338184,1748205044427,-185.78,0.00019994,2]
[362338185,1748205044437,-276.6948878,0.00019994,2]
[362338186,1748205044446,-420.0,0.00019994,2]
[362338187,1748205044456,-470.62791305,0.00019994,2]
[362338188,1748205044465,-420.0,0.00019994,2]
[362338189,1748205044475,-420.0,0.00019994,2]
[362338190,1748205044486,-420.0,0.00019994,2]
[362338191,1748205044496,-420.0,0.00019994,2]
[362338192,1748205044506,-420.0,0.00019994,2]
[362338193,1748205044515,-429.37,0.00019994,2]
[362338194,1748205044524,-375.61,0.00019994,2]
[362338195,1748205044534,-420.0,0.00019994,2]
[362338196,1748205044543,-420.0,0.00019994,2]
[362338197,1748205044558,-420.0,0.00019994,2]
[362338198,1748205044572,-420.0,0.00019994,2]
[362338199,1748205044586,-420.0,0.00019994,2]
[362338200,1748205044599,-383.21,0.00019994,2]
[362338201,1748205044612,-420.0,0.00019994,2]
[362338202,1748205044626,-420.0,0.00019994,2]
[362338203,1748205044639,-420.0,0.00019994,2]
[362338204,1748205044653,-420.0,0.00019994,2]
[362338205,1748205044668,-420.0,0.00019994,2]
[362338206,1748205044682,-420.0,0.00019994,2]
[362338207,1748205044695,-420.0,0.00019994,2]
[362338208,1748205044708,-420.0,0.00019994,2]
[362338209,1748205044721,-420.0,0.00019994,2]
[362338210,1748205044731,-420.0,0.00019994,2]
[362338211,1748205044746,-420.0,0.00019994,2]
[362338212,1748205044760,-420.0,0.00019994,2]
[362338213,1748205044774,-420.0,0.00019994,2]
[362338214,1748205044786,-420.0,0.00019994,2]
[362338215,1748205044799,-29.95960038,0.00019994,2]
[362338216,1748205044818,-390.04039962,0.00019994,2]
[362338217,1748205044831,-538.53,0.00019994,2]
[362338218,1748205044843,-420.0,0.00019994,2]
[362338219,1748205044856,-420.0,0.00019994,2]
[362338220,1748205044868,-420.0,0.00019994,2]
[362338221,1748205044881,-420.0,0.00019994,2]
[362338222,1748205044893,-363.6642349,0.00019994,2]
[362338223,1748205044905,-420.0,0.00019994,2]
[362338224,1748205044918,-309.25520305,0.00019994,2]
[362338225,1748205044934,-110.74479695,0.00019994,2]
[362338226,1748205044948,-278.95243594,0.00019994,2]
[362338227,1748205044960,-455.235664,0.00019994,2]
[362338228,1748205044971,-420.0,0.00019994,2]
[362338229,1748205044982,-420.0,0.00019994,2]
[362338230,1748205044991,-420.0,0.00019994,2]
[362338231,1748205045002,-420.0,0.00019994,2]
[362338232,1748205045014,-422.55818079,0.00019994,2]
[362338233,1748205045028,-420.0,0.00019994,2]
[362338234,1748205045039,-465.83,0.00019994,2]
[362338235,1748205045048,-151.0,0.00019994,2]
[362338236,1748205045058,-187.79264722,0.00019994,2]
[362338237,1748205045068,-420.0,0.00019994,2]
[362338238,1748205045080,-420.0,0.00019994,2]
[362338239,1748205045093,-545.98,0.00019994,2]
[362338240,1748205045104,-420.0,0.00019994,2]
[362338241,1748205045114,-420.0,0.00019994,2]
[362338242,1748205045125,-420.0,0.00019994,2]
[362338243,1748205045136,-557.42,0.00019994,2]
[362338244,1748205045149,-420.0,0.00019994,2]
[362338245,1748205045159,-776.31,0.00019994,2]
[362338246,1748205045170,-420.0,0.00019994,2]
[362338247,1748205045181,-420.0,0.00019994,2]
[362338248,1748205045192,-406.36130878,0.00019994,2]
[362338249,1748205045222,-13.63869122,0.00019994,2]
[362338250,1748205045233,-695.4439709,0.00019994,2]
[362338251,1748205045246,-8.8860291,0.00019994,2]
[362338252,1748205045258,-420.0,0.00019994,2]
[362338253,1748205045270,-420.0,0.00019994,2]
[362338254,1748205045283,-151.0,0.00019994,2]
[362338255,1748205045294,-151.0,0.00019994,7]
[362338256,1748205045306,-235.33061585,0.00019994,7]
[362338257,1748205045318,-151.0,0.00019994,2]
[362338258,1748205045331,-420.0,0.00019994,2]
[362338259,1748205045345,-151.0,0.00019994,2]
[362338260,1748205045356,-151.0,0.00019994,2]
[362338261,1748205045369,-420.0,0.00019994,2]
[362338262,1748205045382,-368.000002,0.00019994,2]
[362338263,1748205045393,-420.0,0.00019994,2]
[362338264,1748205045405,-420.0,0.00019994,2]
[362338265,1748205045417,-341.36580367,0.00019994,2]
[362338266,1748205045434,-78.63419633,0.00019994,2]
[362338267,1748205045446,-420.0,0.00019994,2]
[362338268,1748205045457,-1615.268922,0.00019994,2]
[362338269,1748205045469,-1615.268922,0.00019994,2]
[362338270,1748205045480,-532.52,0.00019994,2]
[362338272,1748205045492,-151.0,0.00019994,2]
[362338273,1748205045503,-420.0,0.00019994,2]
[362338274,1748205045515,-167.021603,0.00019994,2]
[362338275,1748205045527,-151.0,0.00019994,2]
[362338276,1748205045539,-1005.462022,0.00019994,2]
[362338277,1748205045549,-1005.462022,0.00019994,2]
[362338278,1748205045561,-420.0,0.00019994,2]
[362338279,1748205045572,-500.0,0.00019994,2]
[362338280,1748205045583,-420.0,0.00019994,2]
[362338281,1748205045595,-420.0,0.00019994,2]
[362338282,1748205045606,-420.0,0.00019994,2]
[362338283,1748205045617,-420.0,0.00019994,2]
[362338284,1748205045629,-150.0,0.00019995,2]
[362338285,1748205045640,-3271.91662301,0.00019995,2]
[362338286,1748205045654,-1428.37905058,0.00019995,2]
[362338287,1748205045669,-1770.96766971,0.00019995,2]
[362338288,1748205045681,-64.07693244,0.00019995,2]
[362338289,1748205045695,-400.0,0.00019995,2]
[362338290,1748205045709,-1313.34246396,0.00019995,2]
[362338291,1748205045724,-1025.3,0.00019995,2]
[362338292,1748205045835,-420.0,0.00019726,2]
[362338293,1748205045846,-80.0,0.00019726,2]
[362338294,1748205045860,-393.19761392,0.00019726,2]